[Event "NJSK 2022 Jeugd A"]
[Site "Almelo, Netherlands"]
[Date "2022.05.06"]
[Round "6.4"]
[White "Van Kuijk, Vadim"]
[Black "Bakker, Tycho"]
[Result "1-0"]
[TimeControl "90min/40moves + 30min + 30sec/move"]
[WhiteElo "1898"]
[BlackElo "1857"]

1. e4 {[%clk 01:30:58]} c6 {[%clk 01:30:57]} {[%emt 00:00:05]} 2. d4 {[%clk
01:30:52]} {[%emt 00:00:37]} d5 {[%clk 01:31:23]} {[%emt 00:00:04]} 3. exd5
{[%clk 01:31:05]} {[%emt 00:00:17]} cxd5 {[%clk 01:31:48]} {[%emt 00:00:04]} 4.
Bd3 {[%clk 01:31:29]} {[%emt 00:00:07]} Nc6 {[%clk 01:32:16]} {[%emt 00:00:02]}
5. c3 {[%clk 01:31:54]} {[%emt 00:00:04]} Nf6 {[%clk 01:32:41]} {[%emt
00:00:05]} 6. Bf4 {[%clk 01:32:20]} {[%emt 00:00:04]} Bg4 {[%clk 01:33:01]}
{[%emt 00:00:10]} 7. Qb3 {[%clk 01:32:48]} {[%emt 00:00:02]} Qd7 {[%clk
01:33:08]} {[%emt 00:00:24]} 8. Nd2 {[%clk 01:33:08]} {[%emt 00:00:10]} e6
{[%clk 01:33:32]} {[%emt 00:00:07]} 9. Ngf3 {[%clk 01:33:33]} {[%emt 00:00:04]}
Bd6 {[%clk 01:33:53]} {[%emt 00:00:09]} 10. Bxd6 {[%clk 01:33:57]} {[%emt
00:00:07]} Qxd6 {[%clk 01:34:19]} {[%emt 00:00:04]} 11. O-O {[%clk 01:34:17]}
{[%emt 00:00:08]} O-O {[%clk 01:34:47]} {[%emt 00:00:04]} 12. Rfe1 {[%clk
01:34:13]} {[%emt 00:00:34]} Qc7 {[%clk 01:35:11]} {[%emt 00:00:06]} 13. Ne5
{[%clk 01:34:03]} {[%emt 00:00:39]} Nxe5 {[%clk 01:35:32]} {[%emt 00:00:09]} 14.
dxe5 {[%clk 01:32:18]} {[%emt 00:02:14]} Nd7 {[%clk 01:35:58]} {[%emt
00:00:06]} 15. Qb4 {[%clk 01:30:15]} {[%emt 00:02:33]} Bh5 {[%clk 01:36:15]}
{[%emt 00:00:13]} 16. Qh4 {[%clk 01:29:55]} {[%emt 00:00:50]} Bg6 {[%clk
01:35:42]} {[%emt 00:01:03]} 17. Bxg6 {[%clk 01:30:12]} {[%emt 00:00:12]} fxg6
{[%clk 01:36:08]} {[%emt 00:00:05]} 18. Nf3 {[%clk 01:21:42]} {[%emt 00:09:01]}
Rae8 {[%clk 01:36:33]} {[%emt 00:00:05]} 19. Nd4 {[%clk 01:17:14]} {[%emt
00:04:57]} Nc5 {[%clk 01:13:03]} {[%emt 00:24:01]} 20. Re3 {[%clk 01:07:36]}
{[%emt 00:10:08]} Qe7 {[%clk 01:09:44]} {[%emt 00:03:50]} 21. Qg4 {[%clk
01:06:14]} {[%emt 00:01:51]} Ne4 {[%clk 01:08:12]} {[%emt 00:02:02]} 22. f3
{[%clk 00:59:18]} {[%emt 00:07:26]} Ng5 {[%clk 01:05:57]} {[%emt 00:02:46]} 23.
h4 {[%clk 00:51:32]} {[%emt 00:08:15]} Nf7 {[%clk 01:05:53]} {[%emt 00:00:34]}
24. Qh3 {[%clk 00:48:39]} {[%emt 00:03:22]} Nh6 {[%clk 00:59:13]} {[%emt
00:07:10]} 25. g4 {[%clk 00:44:00]} {[%emt 00:05:08]} g5 {[%clk 00:59:30]}
{[%emt 00:00:14]} 26. h5 {[%clk 00:37:47]} {[%emt 00:06:43]} Nf7 {[%clk
00:59:36]} {[%emt 00:00:24]} 27. Qh2 {[%clk 00:34:20]} {[%emt 00:03:57]} Nd8
{[%clk 00:59:38]} {[%emt 00:00:28]} 28. Nb5 {[%clk 00:31:07]} {[%emt 00:03:43]}
Qc5 {[%clk 00:55:15]} {[%emt 00:04:53]} 29. Qe2 {[%clk 00:31:33]} {[%emt
00:00:03]} Nf7 {[%clk 00:55:25]} {[%emt 00:00:20]} 30. Nd4 {[%clk 00:30:52]}
{[%emt 00:01:11]} a6 {[%clk 00:55:18]} {[%emt 00:00:38]} 31. a4 {[%clk
00:29:43]} {[%emt 00:01:38]} Re7 {[%clk 00:41:37]} {[%emt 00:14:10]} 32. b4
{[%clk 00:23:48]} {[%emt 00:06:25]} Qc8 {[%clk 00:41:57]} {[%emt 00:00:09]} 33.
a5 {[%clk 00:18:58]} {[%emt 00:05:22]} Rc7 {[%clk 00:40:40]} {[%emt 00:01:47]}
34. Ra3 {[%clk 00:18:34]} {[%emt 00:00:53]} Nd8 {[%clk 00:39:52]} {[%emt
00:01:18]} 35. Qd2 {[%clk 00:13:12]} {[%emt 00:05:52]} Nc6 {[%clk 00:39:28]}
{[%emt 00:00:54]} 36. Nb3 {[%clk 00:13:28]} {[%emt 00:00:14]} Rcf7 {[%clk
00:27:05]} {[%emt 00:12:53]} 37. Kg2 {[%clk 00:07:01]} {[%emt 00:06:56]} Qb8
{[%clk 00:23:21]} {[%emt 00:04:15]} 38. Qe2 {[%clk 00:03:40]} {[%emt 00:03:51]}
Nxe5 {[%clk 00:14:12]} {[%emt 00:09:39]} 39. Nd2 {[%clk 00:03:41]} {[%emt
00:00:29]} Nc6 {[%clk 00:07:38]} {[%emt 00:07:04]} 40. Rxe6 {[%clk 00:01:40]}
{[%emt 00:02:31]} d4 {[%clk 00:07:26]} {[%emt 00:00:42]} 41. c4 {[%clk
00:25:41]} {[%emt 00:06:29]} Nxb4 {[%clk 00:35:51]} {[%emt 00:02:05]} 42. Rb3
{[%clk 00:25:49]} {[%emt 00:00:21]} Nc2 {[%clk 00:35:58]} {[%emt 00:00:24]} 43.
Ne4 {[%clk 00:18:15]} {[%emt 00:08:04]} Ne3+ {[%clk 00:36:07]} {[%emt
00:00:21]} 44. Rxe3 {[%clk 00:17:37]} {[%emt 00:01:08]} dxe3 {[%clk 00:36:26]}
{[%emt 00:00:10]} 45. Nxg5 {[%clk 00:17:33]} {[%emt 00:00:34]} Rd7 {[%clk
00:31:01]} {[%emt 00:05:55]} 46. Qxe3 {[%clk 00:17:22]} {[%emt 00:00:41]} Rfd8
{[%clk 00:31:18]} {[%emt 00:00:13]} 47. Ne4 {[%clk 00:16:27]} {[%emt 00:01:25]}
Rf8 {[%clk 00:17:23]} {[%emt 00:14:24]} 48. c5 {[%clk 00:04:45]} {[%emt
00:12:13]} Qf4 {[%clk 00:15:58]} {[%emt 00:01:55]} 49. Qxf4 {[%clk 00:04:28]}
{[%emt 00:00:47]} Rxf4 {[%clk 00:16:21]} {[%emt 00:00:08]} 50. Rb6 {[%clk
00:03:43]} {[%emt 00:01:14]} Rc7 {[%clk 00:14:44]} {[%emt 00:02:07]} 51. Kf2
{[%clk 00:02:10]} {[%emt 00:02:04]} Rf8 {[%clk 00:12:57]} {[%emt 00:02:17]} 52.
Ke3 {[%clk 00:01:48]} {[%emt 00:00:51]} Rd8 {[%clk 00:13:12]} {[%emt 00:00:15]}
53. Rd6 {[%clk 00:01:40]} {[%emt 00:00:38]} Re8 {[%clk 00:10:30]} {[%emt
00:03:12]} 54. Kd4 {[%clk 00:01:36]} {[%emt 00:00:35]} Rf8 {[%clk 00:10:51]}
{[%emt 00:00:09]} 55. Ng5 {[%clk 00:01:16]} {[%emt 00:00:49]} Rf4+ {[%clk
00:10:47]} {[%emt 00:00:34]} 56. Kd5 {[%clk 00:01:02]} {[%emt 00:00:45]} Rc8
{[%clk 00:10:34]} {[%emt 00:00:44]} 57. Rd7 {[%clk 00:01:10]} {[%emt 00:00:22]}
Ra4 {[%clk 00:10:32]} {[%emt 00:00:32]} 58. Ne6 {[%clk 00:01:23]} {[%emt
00:00:17]} Rxa5 {[%clk 00:09:01]} {[%emt 00:02:01]} 59. Rxg7+ {[%clk 00:01:05]}
{[%emt 00:00:48]} Kh8 {[%clk 00:09:24]} {[%emt 00:00:07]} 60. Rxb7 {[%clk
00:01:30]} {[%emt 00:00:05]} Ra1 {[%clk 00:08:55]} {[%emt 00:00:59]} 61. g5
{[%clk 00:00:39]} {[%emt 00:01:21]} Rd1+ {[%clk 00:07:05]} {[%emt 00:02:20]} 62.
Ke5 {[%clk 00:00:53]} {[%emt 00:00:16]} Re1+ {[%clk 00:05:32]} {[%emt
00:02:02]} 63. Kf6 {[%clk 00:01:17]} {[%emt 00:00:06]} Re8 {[%clk 00:05:01]}
{[%emt 00:01:02]} 64. Rb6 {[%clk 00:01:08]} {[%emt 00:00:39]} a5 {[%clk
00:04:23]} {[%emt 00:01:09]} 65. Kf7 {[%clk 00:00:46]} {[%emt 00:00:51]} Rg8
{[%clk 00:02:29]} {[%emt 00:02:24]} 66. g6 {[%clk 00:01:04]} {[%emt 00:00:12]}
hxg6 {[%clk 00:02:53]} {[%emt 00:00:06]} 67. hxg6 {[%clk 00:01:25]} {[%emt
00:00:09]} Rg1 {[%clk 00:01:09]} {[%emt 00:02:13]} 68. Rb2 {[%clk 00:01:32]}
{[%emt 00:00:23]} Rh1 {[%clk 00:01:04]} {[%emt 00:00:35]} 69. g7+ {[%clk
00:01:23]} {[%emt 00:00:39]} Rxg7+ {[%clk 00:00:45]} {[%emt 00:00:49]} 70. Nxg7
{[%clk 00:01:45]} {[%emt 00:00:07]} a4 {[%clk 00:01:14]} {[%emt 00:00:02]} 71.
c6 {[%clk 00:01:38]} {[%emt 00:00:36]} a3 {[%clk 00:01:39]} {[%emt 00:00:05]}
72. c7 {[%clk 00:01:46]} {[%emt 00:00:22]} axb2 {[%clk 00:01:40]} {[%emt
00:00:30]} 73. c8=Q+ {[%clk 00:02:07]} {[%emt 00:00:09]} Kh7 {[%clk 00:02:07]}
{[%emt 00:00:03]} 74. Qg8 {[%clk 00:02:21]} {[%emt 00:00:15]} 1-0

[Event "NJSK 2022 Jeugd A"]
[Site "Almelo, Netherlands"]
[Date "2022.05.06"]
[Round "6.5"]
[White "Pham, Khoi"]
[Black "Boeren, Jurriaan"]
[Result "1-0"]
[TimeControl "90min/40moves + 30min + 30sec/move"]
[WhiteElo "2291"]
[BlackElo "1778"]

1. e4 {[%clk 01:30:59]} {[%emt 00:00:01]} e5 {[%clk 01:30:57]} {[%emt
00:00:03]} 2. Nf3 {[%clk 01:31:24]} {[%emt 00:00:05]} Nc6 {[%clk 01:31:23]}
{[%emt 00:00:04]} 3. Bb5 {[%clk 01:31:50]} {[%emt 00:00:03]} a6 {[%clk
01:31:50]} {[%emt 00:00:06]} 4. Ba4 {[%clk 01:32:15]} {[%emt 00:00:02]} Nf6
{[%clk 01:32:16]} {[%emt 00:00:03]} 5. O-O {[%clk 01:32:38]} {[%emt 00:00:08]}
Be7 {[%clk 01:32:41]} {[%emt 00:00:06]} 6. d3 {[%clk 01:33:04]} {[%emt
00:00:04]} b5 {[%clk 01:32:41]} {[%emt 00:00:29]} 7. Bb3 {[%clk 01:33:29]}
{[%emt 00:00:05]} d6 {[%clk 01:32:39]} {[%emt 00:00:32]} 8. c3 {[%clk
01:33:54]} {[%emt 00:00:05]} O-O {[%clk 01:32:57]} {[%emt 00:00:13]} 9. a4
{[%clk 01:34:21]} {[%emt 00:00:02]} Bb7 {[%clk 01:30:49]} {[%emt 00:02:39]} 10.
Bg5 {[%clk 01:34:44]} {[%emt 00:00:07]} Nd7 {[%clk 01:23:51]} {[%emt 00:07:28]}
11. Be3 {[%clk 01:34:35]} {[%emt 00:00:38]} Na5 {[%clk 01:18:52]} {[%emt
00:05:29]} 12. Bc2 {[%clk 01:29:30]} {[%emt 00:05:36]} c5 {[%clk 01:14:56]}
{[%emt 00:04:26]} 13. Nbd2 {[%clk 01:26:33]} {[%emt 00:03:26]} d5 {[%clk
01:03:41]} {[%emt 00:11:45]} 14. d4 {[%clk 01:18:57]} {[%emt 00:08:06]} dxe4
{[%clk 00:43:28]} {[%emt 00:20:44]} 15. Nxe4 {[%clk 01:16:18]} {[%emt
00:03:09]} Qc7 {[%clk 00:37:05]} {[%emt 00:06:53]} 16. dxc5 {[%clk 01:08:57]}
{[%emt 00:07:50]} Nc4 {[%clk 00:32:44]} {[%emt 00:04:51]} 17. b4 {[%clk
01:08:48]} {[%emt 00:00:40]} h6 {[%clk 00:30:04]} {[%emt 00:03:10]} 18. Bc1
{[%clk 01:03:16]} {[%emt 00:06:02]} Rad8 {[%clk 00:26:50]} {[%emt 00:03:44]} 19.
Qe2 {[%clk 01:01:21]} {[%emt 00:02:24]} f5 {[%clk 00:25:23]} {[%emt 00:01:57]}
20. Ned2 {[%clk 00:55:57]} {[%emt 00:05:54]} Nxd2 {[%clk 00:25:07]} {[%emt
00:00:47]} 21. Nxd2 {[%clk 00:56:01]} {[%emt 00:00:26]} bxa4 {[%clk 00:21:00]}
{[%emt 00:04:37]} 22. Bxa4 {[%clk 00:52:34]} {[%emt 00:03:57]} e4 {[%clk
00:17:37]} {[%emt 00:03:53]} 23. c6 {[%clk 00:52:24]} {[%emt 00:00:40]} Nb6
{[%clk 00:16:50]} {[%emt 00:01:16]} 24. Bb3+ {[%clk 00:52:02]} {[%emt
00:00:52]} Kh8 {[%clk 00:16:52]} {[%emt 00:00:28]} 25. cxb7 {[%clk 00:52:22]}
{[%emt 00:00:10]} Qxc3 {[%clk 00:17:09]} {[%emt 00:00:13]} 26. Rxa6 {[%clk
00:51:49]} {[%emt 00:01:03]} 1-0

[Event "NJSK 2022 Jeugd A"]
[Site "Almelo, Netherlands"]
[Date "2022.05.06"]
[Round "6.6"]
[White "Visser, Berend"]
[Black "Van Dam, Thijs"]
[Result "0-1"]
[TimeControl "90min/40moves + 30min + 30sec/move"]
[WhiteElo "1763"]
[BlackElo "1903"]

1. d4 {[%clk 01:30:59]} d5 {[%clk 01:30:53]} {[%emt 00:00:07]} 2. c4 {[%clk
01:31:24]} {[%emt 00:00:05]} e6 {[%clk 01:31:18]} {[%emt 00:00:06]} 3. Nf3
{[%clk 01:31:40]} {[%emt 00:00:12]} Nf6 {[%clk 01:31:40]} {[%emt 00:00:10]} 4.
Nc3 {[%clk 01:32:04]} {[%emt 00:00:05]} dxc4 {[%clk 01:32:06]} {[%emt
00:00:05]} 5. a4 {[%clk 01:32:25]} {[%emt 00:00:08]} c5 {[%clk 01:27:29]}
{[%emt 00:05:07]} 6. e3 {[%clk 01:32:08]} {[%emt 00:00:46]} Nc6 {[%clk
01:23:39]} {[%emt 00:04:20]} 7. Bxc4 {[%clk 01:31:52]} {[%emt 00:00:46]} cxd4
{[%clk 01:23:13]} {[%emt 00:00:56]} 8. exd4 {[%clk 01:32:03]} {[%emt 00:00:19]}
Bb4 {[%clk 01:21:56]} {[%emt 00:01:47]} 9. O-O {[%clk 01:31:39]} {[%emt
00:00:54]} O-O {[%clk 01:22:04]} {[%emt 00:00:21]} 10. Bg5 {[%clk 01:29:35]}
{[%emt 00:02:36]} Bxc3 {[%clk 01:18:08]} {[%emt 00:04:26]} 11. bxc3 {[%clk
01:29:26]} {[%emt 00:00:38]} h6 {[%clk 01:18:00]} {[%emt 00:00:38]} 12. Bh4
{[%clk 01:29:34]} {[%emt 00:00:23]} b6 {[%clk 01:17:33]} {[%emt 00:00:56]} 13.
Re1 {[%clk 01:29:19]} {[%emt 00:00:45]} Bb7 {[%clk 01:17:39]} {[%emt 00:00:24]}
14. Qe2 {[%clk 01:29:08]} {[%emt 00:00:41]} Rc8 {[%clk 01:16:11]} {[%emt
00:01:58]} 15. Ba6 {[%clk 01:28:46]} {[%emt 00:00:53]} Na5 {[%clk 01:15:49]}
{[%emt 00:00:51]} 16. Bxb7 {[%clk 01:28:02]} {[%emt 00:01:14]} Nxb7 {[%clk
01:16:08]} {[%emt 00:00:10]} 17. Rec1 {[%clk 01:25:56]} {[%emt 00:02:36]} Na5
{[%clk 01:15:21]} {[%emt 00:01:17]} 18. Rab1 {[%clk 01:23:33]} {[%emt
00:02:53]} Rc4 {[%clk 01:12:06]} {[%emt 00:03:45]} 19. Rb4 {[%clk 01:22:33]}
{[%emt 00:01:30]} Qc7 {[%clk 01:11:39]} {[%emt 00:00:57]} 20. Rxc4 {[%clk
01:18:42]} {[%emt 00:04:21]} Qxc4 {[%clk 01:09:16]} {[%emt 00:02:53]} 21. Qxc4
{[%clk 01:18:25]} {[%emt 00:00:47]} Nxc4 {[%clk 01:09:40]} {[%emt 00:00:06]} 22.
Ne5 {[%clk 01:17:03]} {[%emt 00:01:52]} Rc8 {[%clk 01:06:42]} {[%emt 00:03:27]}
23. Bxf6 {[%clk 01:15:44]} {[%emt 00:01:50]} gxf6 {[%clk 01:07:04]} {[%emt
00:00:08]} 24. Nd3 {[%clk 01:16:10]} {[%emt 00:00:04]} Nd2 {[%clk 01:05:24]}
{[%emt 00:02:09]} 25. f3 {[%clk 01:15:20]} {[%emt 00:01:22]} Nb3 {[%clk
01:05:17]} {[%emt 00:00:36]} 26. Rd1 {[%clk 01:09:12]} {[%emt 00:06:38]} Rxc3
{[%clk 01:04:49]} {[%emt 00:00:58]} 27. Nf4 {[%clk 01:06:56]} {[%emt 00:02:47]}
Rc4 {[%clk 01:03:52]} {[%emt 00:01:25]} 28. Nh5 {[%clk 01:07:01]} {[%emt
00:00:26]} Rxa4 {[%clk 01:03:36]} {[%emt 00:00:47]} 29. Nxf6+ {[%clk 01:07:10]}
{[%emt 00:00:22]} Kg7 {[%clk 01:03:47]} {[%emt 00:00:17]} 30. Ne8+ {[%clk
01:07:11]} {[%emt 00:00:31]} Kf8 {[%clk 01:03:46]} {[%emt 00:00:29]} 31. Nd6
{[%clk 01:07:21]} {[%emt 00:00:22]} Rxd4 {[%clk 01:03:50]} {[%emt 00:00:25]} 32.
Rxd4 {[%clk 01:07:42]} {[%emt 00:00:09]} Nxd4 {[%clk 01:04:16]} {[%emt
00:00:03]} 33. Nc8 {[%clk 01:08:03]} {[%emt 00:00:10]} Nb5 {[%clk 01:04:35]}
{[%emt 00:00:10]} 34. Kf2 {[%clk 01:07:51]} {[%emt 00:00:43]} Ke8 {[%clk
01:04:59]} {[%emt 00:00:05]} 35. Kg3 {[%clk 01:08:17]} {[%emt 00:00:05]} Kd7
{[%clk 01:05:23]} {[%emt 00:00:06]} 36. Nxb6+ {[%clk 01:08:25]} {[%emt
00:00:23]} axb6 {[%clk 01:05:46]} {[%emt 00:00:07]} 37. Kh4 {[%clk 01:08:42]}
{[%emt 00:00:13]} Nd4 {[%clk 01:05:52]} {[%emt 00:00:24]} 38. Kh5 {[%clk
01:08:59]} {[%emt 00:00:14]} b5 {[%clk 01:06:10]} {[%emt 00:00:12]} 39. Kxh6
{[%clk 01:09:11]} {[%emt 00:00:18]} b4 {[%clk 01:06:34]} {[%emt 00:00:05]} 40.
h4 {[%clk 01:09:35]} {[%emt 00:00:06]} b3 {[%clk 01:06:57]} {[%emt 00:00:07]}
41. Kg5 {[%clk 01:09:38]} {[%emt 00:00:26]} b2 {[%clk 01:07:19]} {[%emt
00:00:08]} 42. h5 {[%clk 01:09:38]} {[%emt 00:00:30]} b1=Q {[%clk 01:07:41]}
{[%emt 00:00:08]} 43. g4 {[%clk 01:09:55]} {[%emt 00:00:13]} Nxf3+ {[%clk
01:07:53]} {[%emt 00:00:18]} 44. Kh6 {[%clk 01:10:15]} {[%emt 00:00:10]} Qg1
{[%clk 01:07:43]} {[%emt 00:00:40]} 45. Kh7 {[%clk 01:10:20]} {[%emt 00:00:25]}
Qxg4 {[%clk 01:08:03]} {[%emt 00:00:10]} 46. h6 {[%clk 01:10:38]} {[%emt
00:00:11]} Ke7 {[%clk 01:08:18]} {[%emt 00:00:14]} 47. Kh8 {[%clk 01:10:42]}
{[%emt 00:00:26]} Kf8 {[%clk 01:08:39]} {[%emt 00:00:09]} 0-1

[Event "NJSK 2022 Jeugd A"]
[Site "Almelo, Netherlands"]
[Date "2022.05.06"]
[Round "6.7"]
[White "Hooijmans, Max"]
[Black "Hubers, Daan"]
[Result "1/2-1/2"]
[TimeControl "90min/40moves + 30min + 30sec/move"]
[WhiteElo "1420"]
[BlackElo "1818"]

1. e4 {[%clk 01:30:58]} {[%emt 00:00:02]} e5 {[%clk 01:30:42]} {[%emt
00:00:19]} 2. Nf3 {[%clk 01:31:21]} {[%emt 00:00:06]} Nc6 {[%clk 01:31:08]}
{[%emt 00:00:04]} 3. Bc4 {[%clk 01:31:46]} {[%emt 00:00:06]} Nf6 {[%clk
01:31:34]} {[%emt 00:00:04]} 4. d3 {[%clk 01:32:09]} {[%emt 00:00:06]} Bc5
{[%clk 01:30:21]} {[%emt 00:01:43]} 5. Be3 {[%clk 01:31:25]} {[%emt 00:01:14]}
Bb6 {[%clk 01:30:28]} {[%emt 00:00:22]} 6. O-O {[%clk 01:30:25]} {[%emt
00:01:31]} d6 {[%clk 01:30:18]} {[%emt 00:00:41]} 7. Nc3 {[%clk 01:29:26]}
{[%emt 00:01:29]} Bg4 {[%clk 01:30:10]} {[%emt 00:00:38]} 8. h3 {[%clk
01:28:25]} {[%emt 00:01:31]} Bh5 {[%clk 01:29:27]} {[%emt 00:01:13]} 9. Kh2
{[%clk 01:20:55]} {[%emt 00:08:00]} h6 {[%clk 01:27:05]} {[%emt 00:02:51]} 10.
Rg1 {[%clk 01:20:19]} {[%emt 00:01:07]} Qd7 {[%clk 01:25:30]} {[%emt 00:02:05]}
11. Nd5 {[%clk 01:18:01]} {[%emt 00:02:48]} Nd4 {[%clk 01:11:53]} {[%emt
00:14:06]} 12. Nxf6+ {[%clk 01:08:48]} {[%emt 00:09:43]} gxf6 {[%clk 01:12:16]}
{[%emt 00:00:08]} 13. g4 {[%clk 01:09:04]} {[%emt 00:00:14]} Bg6 {[%clk
01:11:25]} {[%emt 00:01:21]} 14. Nxd4 {[%clk 01:07:00]} {[%emt 00:02:34]} Bxd4
{[%clk 01:11:09]} {[%emt 00:00:47]} 15. Bxd4 {[%clk 01:07:05]} {[%emt
00:00:24]} exd4 {[%emt 00:04:02]} 16. f4 {[%clk 01:03:35]} O-O-O {[%clk
01:09:14]} {[%emt 00:02:52]} 17. f5 {[%clk 01:03:44]} {[%emt 00:00:21]} Bh7
{[%clk 01:09:26]} {[%emt 00:00:18]} 18. Qf3 {[%clk 01:00:57]} {[%emt 00:03:17]}
Qe7 {[%clk 01:07:47]} {[%emt 00:02:08]} 19. Rg3 {[%clk 00:59:18]} {[%emt
00:02:09]} c6 {[%clk 01:05:32]} {[%emt 00:02:46]} 20. Qf2 {[%clk 00:53:17]}
{[%emt 00:06:31]} Qe5 {[%clk 01:04:16]} {[%emt 00:01:46]} 21. Rf1 {[%clk
00:48:54]} {[%emt 00:04:53]} a5 {[%clk 01:03:45]} {[%emt 00:01:01]} 22. a3
{[%clk 00:48:22]} {[%emt 00:01:02]} b5 {[%clk 00:56:53]} {[%emt 00:07:22]} 23.
Ba2 {[%clk 00:47:46]} {[%emt 00:01:05]} b4 {[%clk 00:56:26]} {[%emt 00:00:58]}
24. axb4 {[%clk 00:47:23]} {[%emt 00:00:53]} axb4 {[%clk 00:56:43]} {[%emt
00:00:13]} 25. Qd2 {[%clk 00:45:40]} {[%emt 00:02:13]} Qc5 {[%clk 00:53:58]}
{[%emt 00:03:14]} 26. Bb3 {[%clk 00:44:42]} {[%emt 00:01:28]} Kc7 {[%clk
00:52:49]} {[%emt 00:01:40]} 27. Ra1 {[%clk 00:42:38]} {[%emt 00:02:33]} h5
{[%clk 00:50:34]} {[%emt 00:02:45]} 28. Qf4 {[%clk 00:38:46]} {[%emt 00:04:22]}
hxg4 {[%clk 00:50:21]} {[%emt 00:00:44]} 29. Rxg4 {[%clk 00:39:03]} {[%emt
00:00:12]} Rdg8 {[%clk 00:48:58]} {[%emt 00:01:54]} 30. Rag1 {[%clk 00:38:05]}
{[%emt 00:01:29]} Rxg4 {[%clk 00:46:43]} {[%emt 00:02:44]} 31. Rxg4 {[%clk
00:38:24]} {[%emt 00:00:11]} Qa5 {[%clk 00:46:19]} {[%emt 00:00:54]} 32. Rg7
{[%clk 00:37:45]} {[%emt 00:01:08]} Bg6 {[%clk 00:44:26]} {[%emt 00:02:23]} 33.
fxg6 {[%clk 00:36:17]} {[%emt 00:01:57]} Qh5 {[%clk 00:44:46]} {[%emt
00:00:10]} 34. Qg3 {[%clk 00:35:11]} {[%emt 00:01:37]} Qe2+ {[%clk 00:43:50]}
{[%emt 00:01:26]} 35. Qg2 {[%clk 00:34:49]} {[%emt 00:00:53]} Rxh3+ {[%clk
00:42:15]} {[%emt 00:02:05]} 36. Kxh3 {[%clk 00:34:52]} {[%emt 00:00:26]} Qh5+
{[%clk 00:36:31]} {[%emt 00:06:15]} 37. Kg3 {[%clk 00:35:14]} {[%emt 00:00:08]}
Qg5+ {[%clk 00:36:32]} {[%emt 00:00:29]} 38. Kh2 {[%clk 00:34:49]} {[%emt
00:00:56]} Qh4+ {[%clk 00:35:43]} {[%emt 00:01:17]} 39. Qh3 {[%clk 00:31:48]}
{[%emt 00:03:32]} Qf2+ {[%clk 00:36:02]} {[%emt 00:00:10]} 40. Kh1 {[%clk
00:32:09]} {[%emt 00:00:10]} Qe1+ {[%clk 00:36:18]} {[%emt 00:00:13]} 41. Kg2
{[%clk 00:32:27]} {[%emt 00:00:13]} Qe2+ {[%clk 00:35:23]} {[%emt 00:01:24]} 42.
Kg3 {[%clk 00:32:44]} {[%emt 00:00:15]} Qe3+ {[%clk 00:35:20]} {[%emt
00:00:31]} 43. Kg4 {[%clk 00:32:02]} {[%emt 00:01:14]} Qg5+ {[%clk 00:35:16]}
{[%emt 00:00:34]} 44. Kf3 {[%clk 00:32:23]} {[%emt 00:00:09]} Qe3+ {[%clk
00:35:36]} {[%emt 00:00:09]} 45. Kg2 {[%clk 00:32:44]} {[%emt 00:00:10]} Qe2+
{[%clk 00:35:53]} {[%emt 00:00:13]} 46. Kg1 {[%clk 00:32:55]} {[%emt 00:00:20]}
Qe1+ {[%clk 00:36:03]} {[%emt 00:00:18]} 47. Qf1 {[%clk 00:33:20]} {[%emt
00:00:07]} Qg3+ {[%clk 00:36:27]} {[%emt 00:00:04]} 48. Kh1 {[%clk 00:33:29]}
{[%emt 00:00:23]} Qh4+ {[%clk 00:36:17]} {[%emt 00:00:39]} 49. Kg2 {[%clk
00:33:51]} {[%emt 00:00:08]} Qg5+ {[%clk 00:36:20]} {[%emt 00:00:27]} 50. Kf3
{[%clk 00:33:34]} {[%emt 00:00:47]} Qe3+ {[%clk 00:36:44]} {[%emt 00:00:05]} 51.
Kg2 {[%clk 00:31:05]} {[%emt 00:03:00]} 1/2-1/2